bitfinex-derivatives/quotes_ETHF0:USTF0_20260204
["timestamp","ask_amount","ask_price","bid_price","bid_amount"]
[1770172679926,0.1746996,2258.7,2257.5,3.9609119]
[1770172680120,0.176811,2258.5,2257.4,1.25398687]
[1770172681014,9.33800863,2258.4,2257.6,0.16617687]
[1770172681223,0.176811,2258.8,2257.8,0.16617687]
[1770172681522,8.87888863,2258.7,2258.0,0.16617687]
[1770172681824,8.87888863,2258.7,2258.1,1.03217687]
[1770172683320,0.00550183,2259.1,2258.6,0.22169]
[1770172683519,0.00550183,2259.1,2258.7,1.08768]
[1770172683520,1.83e-06,2259.1,2258.7,1.08768]
[1770172683720,0.45227786,2260.6,2258.8,4.431]
[1770172683922,0.45227786,2260.4,2259.1,0.22164]
[1770172684117,0.4544421,2260.1,2259.1,0.22164]
[1770172684322,0.4544421,2259.9,2258.8,4.431]
[1770172684721,0.4544421,2259.7,2258.8,4.43616383]
[1770172685218,4.8864421,2259.7,2258.8,4.6023407]
[1770172685414,6.27562712,2259.6,2258.8,4.43616383]
[1770172685620,5.81661734,2259.6,2258.9,0.38783687]
[1770172685820,5.81661734,2259.6,2259.0,0.22165]
[1770172686022,0.46259974,2259.9,2259.1,0.22164]
[1770172686222,5.81661734,2259.8,2259.1,0.22164]
[1770172686423,10.24861734,2259.8,2259.1,0.22164]
[1770172686920,10.24861734,2259.8,2259.2,0.22163]
[1770172687125,0.00358996,2259.9,2259.3,0.866]
[1770172687326,5.8202073,2259.9,2259.3,0.866]
[1770172687926,10.2522073,2259.9,2259.3,0.866]
[1770172689317,0.00358996,2259.9,2259.3,1.03217687]
[1770172689523,0.477925,2260.5,2259.7,0.22158]
[1770172689826,0.477925,2260.5,2259.7,0.38775687]
[1770172690025,4.91171998,2260.3,2259.7,0.22158]
[1770172690227,0.47971998,2260.3,2259.1,0.22164]
[1770172690428,4.915354,2259.9,2259.1,1.08764]
[1770172690728,0.483354,2259.5,2258.9,5.296]
[1770172691229,4.432,2259.3,2258.9,5.296]
[1770172691725,5.81661734,2259.4,2258.9,5.296]
[1770172691923,9.38261734,2259.4,2258.9,5.296]
[1770172692528,3.566,2259.3,2258.9,5.296]
[1770172692730,3.566,2259.4,2258.9,5.296]
[1770172693027,0.48627649,2259.8,2258.9,5.46217687]
[1770172693219,0.49779095,2259.4,2258.9,5.296]
[1770172693422,3.11219,2259.4,2259.0,0.16617687]
[1770172693622,0.49779095,2259.9,2259.0,0.16617687]
[1770172693822,3.60998095,2259.5,2258.9,5.296]
[1770172694129,0.49838516,2259.8,2258.9,5.296]
[1770172694330,3.11219,2259.6,2258.9,5.296]
[1770172694723,3.11219,2259.5,2258.9,5.296]
[1770172694928,3.11219,2259.6,2258.9,5.296]
[1770172695229,6.3150025,2259.7,2258.9,5.296]
[1770172695230,0.49838516,2259.7,2258.9,5.296]
[1770172695529,5.81661734,2259.6,2258.9,8.08917449]
[1770172695724,0.50161049,2260.0,2258.9,8.08917449]
[1770172695930,3.11219,2259.8,2258.9,8.08917449]
[1770172696335,0.50289499,2259.7,2259.0,4.35480573]
[1770172696629,0.50289499,2259.6,2258.9,7.92299762]
[1770172696829,3.11219,2259.4,2258.9,7.92299762]
[1770172697331,8.92880734,2259.3,2259.0,6.9869004]
[1770172697527,3.11219,2259.4,2259.0,6.9869004]
[1770172697733,3.11219,2259.8,2259.0,6.9869004]
[1770172697935,0.50563467,2259.5,2259.0,6.9869004]
[1770172698132,0.50610715,2259.3,2259.0,6.9869004]
[1770172698529,2.65481,2259.1,2259.0,6.9869004]
[1770172698730,2.65481,2259.3,2259.0,6.9869004]
[1770172698933,0.50610715,2259.5,2259.0,6.9869004]
[1770172699233,2.65481,2259.2,2259.1,2.62699762]
[1770172699533,2.65481,2259.2,2259.0,6.9869004]
[1770172699832,2.65481,2259.1,2259.0,6.9869004]
[1770172700033,1.6568,2259.1,2259.0,8.32081468]
[1770172700229,1.6568,2259.1,2259.0,3.9609119]
[1770172700434,1.6568,2259.1,2259.0,6.99773535]
[1770172700934,1.09123577,2259.1,2258.9,1.43474262]
[1770172701133,1.09123577,2259.1,2258.8,0.00516383]
[1770172701134,1.09123577,2259.1,2258.8,0.866]
[1770172701329,1.09123577,2260.1,2258.8,0.866]
[1770172702136,1.09123577,2260.1,2258.8,0.87066687]
[1770172704940,1.09123577,2260.1,2258.9,0.22166]
[1770172705441,1.09123577,2260.1,2259.0,0.22165]
[1770172705644,1.09123577,2260.1,2259.1,0.22164]
[1770172709846,1.09123577,2260.1,2258.8,1.95018362]
[1770172710141,1.09123577,2260.1,2258.8,0.87066687]
[1770172710548,1.31278577,2260.1,2258.8,0.00466687]
[1770172710846,1.31278577,2260.1,2258.6,4.65069]
[1770172711047,1.09123577,2259.9,2258.6,4.65069]
[1770172711345,1.09123577,2259.9,2258.6,4.429]
[1770172711847,1.09123577,2259.9,2258.6,4.43429656]
[1770172712941,1.09123577,2259.8,2258.6,4.43429656]
[1770172713848,1.09123577,2259.8,2258.3,0.22172]
[1770172714351,1.09123577,2259.6,2258.0,1.94551675]
[1770172714851,1.09123577,2259.6,2258.0,1.95093539]
[1770172715448,1.09123577,2259.6,2258.1,1.07951675]
[1770172716350,1.31283577,2259.6,2258.1,1.07951675]
[1770172718146,1.31283577,2259.6,2258.1,1.30125675]
[1770172719948,1.31283577,2259.6,2258.1,0.22174]
[1770172720448,1.09123577,2259.5,2258.1,0.22174]
[1770172720652,1.09123577,2259.1,2258.0,0.00541864]
[1770172722358,1.09123577,2259.1,2258.0,1.08493539]
[1770172722848,1.09123577,2259.1,2258.0,1.30668539]
[1770172723048,1.09123577,2259.1,2258.2,1.07951675]
[1770172723250,1.09123577,2259.3,2258.4,1.07951675]
[1770172724354,1.09123577,2259.5,2258.4,1.30122675]
[1770172725357,1.09123577,2259.5,2258.4,1.07951675]
[1770172725557,1.09123577,2260.1,2258.5,1.07951675]
[1770172725957,1.09123577,2260.1,2258.5,5.04042865]
[1770172726158,1.09123577,2260.1,2258.6,1.07951675]
[1770172726657,1.09123577,2260.1,2258.8,1.07951675]
[1770172726955,1.09123577,2260.1,2258.7,0.22168]
[1770172729460,1.09123577,2260.1,2258.7,1.30119675]
[1770172732462,1.09123577,2260.1,2258.9,1.925986]
[1770172732863,1.09123577,2260.1,2258.8,0.22167]
[1770172733561,1.09123577,2260.1,2258.8,2.147656]
[1770172738863,1.09123577,2260.1,2259.1,0.22164]
[1770172739660,1.09123577,2260.1,2259.1,2.36518813]
[1770172739864,1.09123577,2260.1,2259.1,2.14354813]
[1770172740062,1.09123577,2260.1,2258.7,2.14354813]
[1770172741162,1.09123577,2260.1,2258.9,2.14354813]
[1770172742668,1.09123577,2260.1,2258.8,0.22167]
[1770172742669,1.09123577,2260.1,2259.1,2.14354813]
[1770172742866,1.09123577,2260.1,2259.0,2.36518813]
[1770172743069,1.09123577,2260.1,2258.7,4.19602661]
[1770172743267,1.09123577,2260.1,2258.5,2.36524813]
[1770172746569,6.61189558,2260.3,2258.4,3.9609119]
[1770172746570,2.04641465,2260.3,2259.1,2.14354813]
[1770172746762,2.04641465,2260.3,2259.3,2.14354813]
[1770172747567,2.04641465,2260.3,2259.3,2.36516813]
[1770172749170,0.00499053,2260.3,2259.3,2.36516813]
[1770172749768,0.00499053,2260.3,2259.7,2.14354813]
[1770172749968,9.83340917,2261.6,2259.9,2.14354813]
[1770172749969,2.04142412,2260.9,2259.9,2.14354813]
[1770172750169,2.04142412,2260.9,2260.0,2.14354813]
[1770172750370,2.04142412,2260.9,2259.6,2.49147286]
[1770172750568,2.04142412,2260.9,2259.6,2.14354813]
[1770172750775,2.04142412,2260.8,2259.3,3.00954813]
[1770172751072,2.04142412,2260.8,2259.6,0.00544562]
[1770172751475,2.04142412,2260.7,2259.6,0.00544562]
[1770172753175,7.78371638,2261.2,2259.6,0.00544562]
[1770172753176,2.04142412,2261.5,2260.3,0.22152]
[1770172753375,0.22137,2261.9,2260.3,0.22152]
[1770172753576,2.26338868,2261.3,2260.4,2.14354813]
[1770172754178,0.22533363,2261.3,2260.4,2.14354813]
[1770172754378,0.22533363,2261.3,2260.4,2.36505813]
[1770172757578,0.22533363,2261.3,2260.4,2.14354813]
[1770172757878,0.22533363,2261.3,2260.1,2.14354813]
[1770172757879,2.26675775,2261.3,2260.1,2.14354813]
[1770172761786,0.22533363,2261.3,2260.4,2.69944238]
[1770172762878,0.22533363,2261.3,2260.6,2.47792238]
[1770172763086,2.40892291,2261.9,2260.6,2.47792238]
[1770172763985,2.41465174,2261.9,2260.6,2.47792238]
[1770172765190,2.41465174,2261.9,2260.8,2.47792238]
[1770172766590,0.00572883,2261.9,2261.1,2.47792238]
[1770172766989,0.00572883,2261.9,2261.1,2.69937238]
[1770172767289,2.40892291,2262.2,2261.1,2.69937238]
[1770172768191,2.41250468,2262.2,2261.1,2.69937238]
[1770172769385,2.41250468,2262.2,2260.4,2.47792238]
[1770172769386,2.40892291,2261.9,2260.4,2.47792238]
[1770172770589,2.40892291,2261.9,2260.5,2.69942238]
[1770172772492,2.40892291,2261.7,2260.5,2.69942238]
[1770172772889,2.40892291,2261.7,2260.7,2.47792238]
[1770172773094,2.40892291,2261.7,2260.6,0.22149]
[1770172773296,2.40892291,2262.0,2260.8,2.47792238]
[1770172774894,2.40892291,2262.0,2260.7,0.22149]
[1770172775599,2.40892291,2261.8,2260.3,2.47792238]
[1770172776198,2.40892291,2261.7,2260.3,2.47792238]
[1770172776395,2.63032291,2261.6,2260.3,2.47792238]
[1770172776598,2.40892291,2261.5,2260.3,2.47792238]
[1770172777096,2.40892291,2261.5,2260.1,2.69946238]
[1770172778196,2.40892291,2261.5,2260.1,5.33243367]
[1770172778498,2.40892291,2261.5,2260.2,2.47792238]
[1770172779705,2.40892291,2261.4,2260.1,0.22154]
[1770172780307,2.40892291,2261.3,2259.9,5.11089367]
[1770172780506,2.40892291,2261.3,2260.0,2.47792238]
[1770172781309,2.40892291,2261.3,2260.1,2.47792238]
[1770172785409,4.426,2261.4,2260.3,2.47792238]
[1770172785609,7.65435038,2261.5,2260.4,2.47792238]
[1770172785610,2.40892291,2261.5,2260.4,2.47792238]
[1770172786610,2.40892291,2261.5,2260.5,2.47792238]
[1770172797812,5.24542747,2261.6,2260.5,2.69942238]
[1770172798118,7.58195467,2261.8,2260.7,2.48940136]
[1770172798717,2.3365272,2261.7,2260.7,2.48940136]
[1770172799113,2.3365272,2261.7,2260.8,2.48940136]
[1770172799520,2.5579372,2261.5,2260.4,2.63297129]
[1770172799715,2.3365272,2261.4,2260.2,2.48940136]
[1770172800723,2.3365272,2260.9,2259.7,2.63297129]
[1770172800923,2.3365272,2260.7,2259.6,0.00544562]
[1770172801621,2.3365272,2260.7,2259.6,2.49484698]
[1770172801919,7.58195467,2261.3,2260.1,2.48940136]
[1770172802120,7.58195467,2261.3,2260.3,2.71092136]
[1770172802121,2.3365272,2261.3,2260.3,2.71092136]
[1770172802320,5.24542747,2261.6,2260.5,2.48940136]
[1770172802321,2.3365272,2261.6,2260.5,2.48940136]
[1770172802720,2.3365272,2261.8,2260.5,2.48940136]
[1770172803415,2.3365272,2261.7,2260.5,2.48940136]
[1770172805521,2.3365272,2261.7,2260.3,2.48940136]
[1770172805724,2.3365272,2261.5,2260.2,0.865]
[1770172805917,2.3365272,2261.4,2260.2,3.35440136]
[1770172806114,7.58195467,2261.6,2260.3,2.48940136]
[1770172806318,2.3365272,2261.5,2260.3,2.48940136]
[1770172809531,7.58195467,2261.3,2260.3,2.48940136]
[1770172811624,7.58195467,2261.3,2260.3,2.71092136]
[1770172811925,2.3365272,2261.3,2260.3,2.71092136]
[1770172813727,7.58195467,2261.5,2260.3,2.71092136]
[1770172814429,2.3365272,2261.4,2260.3,2.71092136]
[1770172816132,2.3365272,2261.4,2260.5,2.48940136]
[1770172818926,2.3365272,2261.4,2260.3,5.12237265]
[1770172819128,2.3365272,2261.4,2260.3,2.48940136]
[1770172819529,7.58195467,2261.4,2260.2,0.865]
[1770172819736,2.3365272,2261.1,2259.9,5.34393265]
[1770172820132,2.3365272,2261.1,2259.9,2.71096136]
[1770172820629,2.3365272,2261.1,2259.9,6.76073764]
[1770172821330,2.3365272,2261.1,2259.9,2.71096136]
[1770172821733,2.30108424,2261.0,2259.9,2.48940136]
[1770172822234,2.30108424,2261.0,2260.0,2.35948828]
[1770172822536,7.54651171,2261.2,2260.0,2.58103828]
[1770172822931,2.30108424,2261.1,2260.0,2.58103828]
[1770172823126,2.30108424,2261.1,2260.2,2.35948828]
[1770172823330,5.24542747,2261.2,2260.2,2.35948828]
[1770172823728,7.54651171,2261.2,2260.2,2.35948828]
[1770172826738,2.30108424,2261.1,2260.2,2.35948828]
[1770172829736,2.30108424,2261.0,2260.2,2.35948828]
[1770172830140,2.30108424,2260.8,2259.8,6.78648828]
[1770172830939,2.30108424,2260.7,2259.6,2.5865239]
[1770172831640,41.80553538,2260.6,2259.6,2.5865239]
[1770172831841,41.81008443,2260.6,2259.6,2.5865239]
[1770172832340,2.30563329,2260.6,2259.6,2.5865239]
[1770172832544,0.00454905,2260.6,2259.7,0.22158]
[1770172832844,0.00454905,2260.6,2259.8,2.35948828]
[1770172838248,0.00454905,2260.6,2259.6,2.3649339]
[1770172838249,2.30108424,2260.5,2259.6,2.3649339]
[1770172839043,2.30108424,2260.4,2259.6,2.3649339]
[1770172839442,2.30108424,2260.2,2259.0,2.35948828]
[1770172839646,2.30108424,2260.0,2259.0,2.35948828]
[1770172840447,2.30108424,2260.0,2259.0,2.36334766]
[1770172841751,39.50445114,2260.1,2259.0,2.36334766]
[1770172841951,41.80553538,2260.2,2259.0,2.36334766]
[1770172842149,41.80553538,2260.5,2259.2,2.35948828]
[1770172842453,2.30108424,2260.5,2259.4,2.35948828]
[1770172842854,39.50900019,2260.6,2259.4,2.35948828]
[1770172843053,0.00454905,2260.6,2259.6,2.35948828]
[1770172843252,2.30563329,2260.6,2259.6,2.35948828]
[1770172844348,0.00454905,2260.6,2259.6,2.35948828]
[1770172844654,6.72908424,2260.9,2259.8,2.35948828]
[1770172844854,6.72908424,2260.9,2260.0,2.35948828]
[1770172845550,6.73249573,2260.9,2260.0,2.35948828]
[1770172846457,4.43141149,2260.9,2260.0,2.35948828]
[1770172846655,0.00341149,2260.9,2260.0,2.35948828]
[1770172847355,41.80553538,2261.4,2260.2,2.35948828]
[1770172847959,2.30108424,2261.6,2260.3,4.99245957]
[1770172848158,2.30108424,2261.6,2260.5,2.35948828]
[1770172848456,2.30639424,2261.6,2260.5,2.35948828]
[1770172848652,2.30639424,2261.6,2260.5,2.58098828]
[1770172849051,2.30639424,2261.6,2260.4,0.865]
[1770172849052,2.30108424,2261.5,2260.2,6.59388319]
[1770172849253,2.30108424,2261.1,2259.8,2.35948828]
[1770172849457,2.30108424,2260.9,2259.8,2.35948828]
[1770172852066,2.30108424,2260.9,2259.6,3.71956129]
[1770172852067,2.29062303,2260.7,2259.6,0.865]
[1770172852866,2.29062303,2260.7,2259.7,2.42218363]
[1770172854773,43.68007417,2261.0,2259.7,2.42218363]
[1770172855969,2.30928227,2260.9,2259.7,2.42218363]
[1770172857971,2.30928227,2260.9,2259.7,2.64376363]
[1770172858274,2.30928227,2260.9,2259.8,2.47303727]
[1770172859576,2.30928227,2260.9,2259.8,2.69460727]
[1770172859872,1.885,2261.0,2260.0,2.69458727]
[1770172860076,1.885,2261.0,2260.2,2.47303727]
[1770172860475,2.30928227,2260.8,2259.5,2.47303727]
[1770172860679,2.30928227,2260.4,2259.0,2.69854665]
[1770172860976,2.30928227,2260.2,2259.1,2.69467727]
[1770172862678,2.30928227,2260.2,2259.1,2.47303727]
[1770172864684,1.897,2260.3,2259.3,2.47303727]
[1770172864884,2.30928227,2260.2,2259.3,2.47303727]
[1770172865485,1.897,2260.3,2259.3,2.47303727]
[1770172865987,2.30928227,2260.4,2259.3,2.47303727]
[1770172866288,2.30928227,2260.6,2259.3,2.69465727]
[1770172866786,5.25945389,2260.8,2259.5,2.69463727]
[1770172866787,2.30928227,2260.8,2259.5,2.69463727]
[1770172866986,2.30928227,2260.8,2259.7,2.47303727]
[1770172867280,2.30928227,2260.8,2259.1,2.64523787]
[1770172867281,2.30928227,2260.5,2259.1,2.64523787]
[1770172867482,4.37933481,2259.8,2258.3,2.64523787]
[1770172867681,2.30928227,2259.6,2258.2,6.90103727]
[1770172867889,2.30928227,2259.0,2257.6,2.47303727]
[1770172868087,2.30928227,2258.9,2257.8,2.47303727]
[1770172868288,1.901,2259.1,2258.0,2.47303727]
[1770172868481,2.30928227,2259.0,2257.9,0.22176]
[1770172868789,2.30928227,2259.0,2258.0,2.47792535]
[1770172870295,2.30928227,2258.6,2256.9,2.47303727]
[1770172870486,2.30928227,2258.3,2256.9,2.47303727]
[1770172870683,2.30928227,2257.9,2256.8,0.1]
[1770172870895,2.30928227,2257.1,2256.1,0.35271577]
[1770172871188,2.30928227,2257.0,2255.6,2.47303727]
[1770172871385,1.903,2257.0,2255.8,2.47303727]
[1770172871590,0.00330362,2257.0,2255.8,2.47774921]
[1770172871787,2.31258589,2257.0,2255.8,2.47774921]
[1770172872187,2.31258589,2257.0,2255.8,2.69970921]
[1770172872581,2.31258589,2257.0,2255.8,2.47774921]
[1770172872784,2.31258589,2257.0,2255.8,0.00471194]
[1770172872990,2.30928227,2256.8,2255.8,0.00471194]
[1770172874188,2.30928227,2256.8,2254.9,2.47303727]
[1770172874389,2.30928227,2256.3,2254.7,0.866]
[1770172874589,2.30928227,2256.1,2254.7,0.866]
[1770172874893,2.30928227,2256.1,2254.6,2.47303727]
[1770172874894,2.30928227,2255.5,2253.9,2.69500183]
[1770172875290,1.31258589,2257.0,2255.5,2.69502727]
[1770172875488,1.31258589,2257.0,2255.1,2.47303727]
[1770172875690,2.07005254,2257.1,2254.6,6.90403727]
[1770172875691,2.07005254,2256.3,2254.6,6.90403727]
[1770172875888,0.866,2256.2,2254.6,6.90403727]
[1770172876287,2.07005254,2255.9,2254.6,4.43531965]
[1770172876493,2.07005254,2255.5,2253.9,2.69500183]
[1770172876694,0.866,2255.4,2253.9,2.69500183]
[1770172877393,2.30928227,2255.3,2253.9,2.69500183]
[1770172877588,2.30928227,2255.0,2253.9,0.22641078]
[1770172877794,2.30928227,2254.6,2253.9,0.22641078]
[1770172877994,2.3149109,2254.6,2253.9,0.22641078]
[1770172878294,2.30928227,2254.2,2252.7,2.47303727]
[1770172878494,2.30928227,2253.8,2252.5,4.432]
[1770172878691,2.30928227,2253.8,2252.1,0.22233]
[1770172878991,2.30928227,2253.8,2251.9,2.93605254]
[1770172879186,2.30928227,2253.8,2252.5,0.22229]
[1770172879893,2.30928227,2253.8,2252.0,0.866]
[1770172880494,2.30928227,2253.8,2252.1,2.47303727]
[1770172881396,2.45299099,2253.4,2251.9,0.00557547]
[1770172881896,2.45299099,2253.4,2252.0,2.44397684]
[1770172882092,2.45299099,2253.4,2251.9,2.29796801]
[1770172882093,2.45299099,2253.4,2251.9,2.67189231]
[1770172882298,2.45299099,2253.0,2251.9,0.00557547]
[1770172882597,2.45299099,2252.9,2251.9,0.00557547]
[1770172883892,2.07005254,2252.7,2251.1,2.44397684]
[1770172884092,2.45299099,2252.6,2250.9,6.88097684]
[1770172884399,6.50705254,2252.7,2250.4,0.01040699]
[1770172884400,2.45299099,2252.3,2250.4,2.45438383]
[1770172884597,2.45299099,2251.8,2250.7,2.66644684]
[1770172884793,2.45299099,2251.8,2250.7,0.00370892]
[1770172885097,2.07005254,2250.8,2248.9,0.22196456]
[1770172885399,2.45299099,2250.6,2248.9,0.22196456]
[1770172885589,2.45299099,2250.6,2248.1,0.867]
[1770172885590,2.45299099,2249.4,2248.0,2.44397684]
[1770172885794,2.45299099,2249.4,2248.2,2.44397684]
[1770172885988,2.45299099,2249.4,2248.4,2.44397684]
[1770172885989,0.00522958,2249.4,2248.4,2.44397684]
[1770172886190,5.69288349,2251.7,2248.4,2.44397684]
[1770172886191,4.438,2250.6,2249.3,0.01040699]
[1770172886390,2.45299099,2250.8,2249.5,2.44397684]
[1770172886698,2.45299099,2250.8,2249.5,2.66656684]
[1770172886890,2.45299099,2250.8,2249.9,0.01040699]
[1770172887091,2.45706262,2250.8,2249.9,0.0037433]
[1770172887293,0.22248,2250.7,2248.6,2.44397684]
[1770172887496,2.45299099,2250.5,2248.3,2.44397684]
[1770172887698,2.45299099,2250.3,2248.6,2.44397684]
[1770172887897,2.45299099,2250.3,2248.8,2.45438383]
[1770172888195,2.45299099,2250.7,2248.8,2.4472143]
[1770172888500,2.45299099,2250.7,2248.8,2.68027129]
[1770172888702,2.45299099,2250.7,2248.9,2.44397684]
[1770172888999,2.45299099,2250.7,2249.1,2.44397684]
[1770172889192,2.45299099,2250.7,2249.4,2.44397684]
[1770172889592,2.45299099,2250.7,2249.8,0.01040699]
[1770172890196,2.45299099,2250.7,2249.1,2.44397684]
[1770172890602,0.5,2250.0,2249.4,2.44397684]
[1770172891102,0.5,2250.0,2249.8,0.01040699]
[1770172891401,2.45299099,2250.7,2249.8,0.01040699]
[1770172891597,2.45299099,2250.7,2249.4,2.44397684]
[1770172891797,2.45299099,2250.7,2249.6,0.01040699]
[1770172892297,2.45299099,2250.7,2248.8,0.00323746]
[1770172892298,2.45299099,2250.7,2249.1,2.44397684]
[1770172892693,2.45299099,2250.7,2248.8,2.4472143]
[1770172893000,0.00407163,2250.8,2248.8,0.00323746]
[1770172893001,2.45299099,2250.2,2248.8,0.00323746]
[1770172893200,2.45299099,2250.0,2248.8,0.00323746]
[1770172893601,2.45299099,2250.0,2248.9,2.44397684]
[1770172893796,2.45299099,2250.0,2249.2,0.01040699]
[1770172893998,2.45299099,2250.3,2249.2,0.01040699]
[1770172894199,2.45299099,2250.3,2249.1,2.66659684]
[1770172894394,2.45299099,2250.3,2249.4,0.22259]
[1770172894594,2.45299099,2250.3,2249.5,0.01040699]
[1770172894802,2.45299099,2250.3,2249.6,0.01040699]
[1770172895003,2.45299099,2250.3,2248.8,2.4472143]
[1770172895203,2.45299099,2250.6,2249.3,2.45438383]
[1770172895405,2.45299099,2250.6,2249.3,2.44397684]
[1770172895600,2.45299099,2250.6,2249.4,0.01040699]
[1770172895799,2.45299099,2250.6,2249.3,2.67699383]
[1770172896000,2.45299099,2250.6,2249.3,2.66658684]
[1770172896203,2.45299099,2250.6,2249.4,0.01040699]
[1770172896398,2.45299099,2250.6,2249.6,0.01040699]
[1770172896801,2.45299099,2250.6,2249.1,2.44397684]
[1770172897001,2.45299099,2250.6,2249.1,2.66660684]
[1770172897204,2.45299099,2250.6,2249.1,2.67701383]
[1770172897402,2.45299099,2250.6,2249.1,2.66660684]
[1770172897602,2.45299099,2250.6,2249.1,0.22263]
[1770172897802,2.45299099,2250.6,2249.1,2.66660684]
[1770172898108,2.45299099,2250.6,2248.8,2.4472143]
[1770172898807,2.45299099,2250.6,2248.8,2.45762129]
[1770172899107,2.45299099,2250.6,2249.0,2.67701383]
[1770172899604,0.00407163,2250.8,2249.5,2.44397684]
[1770172899803,0.00407163,2250.8,2249.9,2.66652684]
[1770172900004,0.00407163,2250.8,2250.2,0.01040699]
[1770172900202,2.45706262,2250.8,2250.2,0.01040699]
[1770172900399,2.45706262,2250.8,2250.3,0.01040699]
[1770172900604,2.45706262,2250.8,2250.2,0.01040699]
[1770172901006,2.45706262,2250.8,2250.3,0.01040699]
[1770172901204,2.45706262,2250.8,2250.2,0.01040699]
[1770172901404,2.45706262,2250.8,2249.6,2.44397684]
[1770172901702,2.45706262,2250.8,2249.8,2.44397684]
[1770172901900,2.45706262,2250.8,2250.0,0.01040699]
[1770172902104,2.45706262,2250.8,2250.1,0.01040699]
[1770172902304,2.45706262,2250.8,2249.8,2.44397684]
[1770172902504,2.45706262,2250.8,2249.4,2.44397684]
[1770172902704,2.45299099,2250.6,2249.3,4.446]
[1770172902904,2.45299099,2250.6,2249.4,2.44397684]
[1770172903204,2.45299099,2250.6,2249.3,4.67901699]
[1770172903410,2.45299099,2250.6,2249.0,2.44397684]
[1770172904205,2.45299099,2250.2,2248.8,0.00323746]
[1770172904408,2.45299099,2249.7,2248.4,0.1]
[1770172904610,2.45299099,2249.5,2248.4,0.1]
[1770172904809,2.45299099,2249.5,2248.2,0.22271]
[1770172905009,2.45299099,2249.4,2247.7,2.66674684]
[1770172905210,2.45299099,2249.2,2247.7,2.66674684]
[1770172905403,2.45787819,2249.2,2247.8,0.01040699]
[1770172905601,2.45787819,2249.2,2247.7,0.00376104]
[1770172906304,2.45299099,2249.0,2247.7,0.00376104]
[1770172906715,2.45299099,2249.0,2246.2,2.91079881]
[1770172906716,2.67580099,2247.3,2245.1,3.96900735]
[1770172906912,2.45299099,2246.7,2244.9,0.22304]
[1770172907418,2.45299099,2246.5,2245.2,2.66698684]
[1770172907614,0.00370361,2246.5,2245.7,2.66694684]
[1770172907809,0.00370361,2246.5,2246.0,2.44397684]
[1770172908014,0.869,2247.8,2245.2,2.91489918]
[1770172908015,0.869,2247.7,2246.2,2.44397684]
[1770172908315,4.448,2248.0,2246.2,2.44397684]
[1770172908509,0.63031828,2248.6,2246.4,2.44397684]
[1770172908813,4.448,2248.5,2246.7,2.44397684]
[1770172909015,4.448,2248.5,2246.2,4.448]
[1770172909016,0.00321702,2248.5,2247.1,2.44397684]
[1770172909311,0.00321702,2248.5,2247.3,2.58299824]
[1770172909513,0.00321702,2248.5,2247.9,2.58299824]
[1770172909717,2.45299099,2249.0,2247.9,2.44397684]
[1770172909918,6.90199099,2249.4,2248.4,2.58299824]
[1770172910111,2.45299099,2249.4,2248.3,2.44397684]
[1770172910313,4.449,2250.3,2248.6,2.58299824]
[1770172910510,2.45299099,2250.2,2248.4,2.44397684]
[1770172910713,2.45853458,2250.2,2248.4,2.44397684]
[1770172910918,2.45853458,2250.2,2248.6,2.38570253]
[1770172911414,2.45786059,2250.1,2248.2,2.38570253]
[1770172911612,2.45786059,2249.8,2248.2,2.38570253]
[1770172912012,2.45786059,2249.8,2247.7,2.38570253]
[1770172912818,0.22252,2250.0,2247.8,2.38570253]
[1770172912819,2.45786059,2249.7,2247.8,2.38570253]
[1770172914419,2.45786059,2249.7,2247.9,2.38570253]
[1770172914820,2.45786059,2249.7,2248.0,2.38570253]
[1770172915019,2.45786059,2249.7,2248.2,2.38570253]
[1770172915219,2.45786059,2249.7,2247.7,2.38570253]
[1770172915619,2.45786059,2249.7,2247.8,2.38570253]
[1770172916321,2.68041059,2249.7,2247.8,2.38570253]
[1770172916923,0.22256,2249.6,2247.8,2.38570253]
[1770172917224,2.30896382,2249.4,2247.8,2.38570253]
[1770172917426,2.30896382,2249.2,2247.8,2.38570253]
[1770172917620,2.30896382,2249.2,2248.0,2.45646542]
[1770172918118,2.30896382,2249.2,2248.4,2.58299824]
[1770172918324,2.30896382,2249.2,2248.0,2.45646542]
[1770172918626,2.30896382,2249.2,2247.7,2.45646542]
[1770172918826,2.30896382,2249.2,2247.8,2.45646542]
[1770172919220,2.30896382,2249.2,2248.0,2.58299824]
[1770172919421,2.30896382,2249.2,2247.5,2.67922542]
[1770172919622,2.30896382,2249.2,2247.5,5.26222366]
[1770172919822,2.30896382,2249.2,2247.6,2.58299824]
[1770172920320,44.43446363,2249.5,2247.3,4.45]
[1770172920321,37.83989363,2249.5,2247.8,2.45646542]
[1770172920520,2.30896382,2249.9,2248.6,2.45646542]
[1770172920724,6.74096382,2249.8,2248.2,2.45646542]
[1770172921028,2.30896382,2249.1,2247.6,2.45646542]
[1770172921329,2.30896382,2249.0,2247.6,2.45646542]
[1770172921632,2.30896382,2249.0,2247.3,2.45646542]
[1770172921821,2.30896382,2249.0,2247.7,2.45646542]
[1770172922022,2.30896382,2249.3,2248.1,2.45646542]
[1770172922422,2.30896382,2249.3,2248.3,2.58299824]
[1770172922821,2.30896382,2249.8,2248.8,2.58299824]
[1770172923026,2.30896382,2249.8,2248.8,0.00418972]
[1770172923221,2.30896382,2249.8,2249.1,2.58299824]
[1770172923527,2.30896382,2249.8,2249.0,2.58299824]
[1770172924028,2.30896382,2249.8,2249.1,2.58299824]
[1770172924226,8.68850741,2250.2,2249.3,2.58299824]
[1770172924423,2.31450741,2250.2,2249.1,2.58299824]
[1770172924627,2.31450741,2250.2,2249.3,2.58299824]
[1770172924828,2.30896382,2249.9,2248.8,0.00418972]
[1770172925925,2.30896382,2249.9,2248.5,0.22266]
[1770172925926,2.30896382,2249.5,2248.0,2.45646542]
[1770172926230,2.30896382,2249.3,2248.0,2.45646542]
[1770172926924,8.29296382,2249.5,2248.0,2.67917542]
[1770172927227,4.24096382,2249.8,2248.2,2.45646542]
[1770172927431,2.30896382,2249.7,2248.2,2.45646542]
[1770172927626,2.30896382,2249.6,2248.2,2.45646542]
[1770172928022,2.30896382,2249.6,2248.4,2.45646542]
[1770172928229,2.30896382,2250.0,2248.4,2.45646542]
[1770172928829,2.30896382,2250.0,2248.4,2.67913542]
[1770172929026,2.30896382,2249.6,2248.4,2.45646542]
[1770172930320,6.74096382,2249.6,2248.4,2.45646542]
[1770172930521,6.65905849,2249.5,2248.4,2.45646542]
[1770172930722,2.22705849,2249.4,2248.1,2.45646542]
[1770172931331,2.22705849,2249.7,2248.4,2.45646542]
[1770172931528,4.432,2249.5,2248.1,2.45646542]
[1770172931830,2.22705849,2249.4,2248.1,2.45646542]
[1770172932034,2.22705849,2249.4,2248.3,2.45646542]
[1770172932525,2.30896382,2249.7,2248.3,2.67914542]
[1770172932734,4.23796382,2249.7,2248.3,2.67914542]